bitfinex/quotes_ETHUSD_20251110
["timestamp","ask_amount","ask_price","bid_price","bid_amount"]
[1762749167694,3.69230258,3611.8,3611.7,0.59542221]
[1762749167996,0.9236,3611.8,3611.7,0.59542221]
[1762749168149,3.69230258,3611.8,3611.7,0.59542221]
[1762749169100,3.69230258,3611.8,3611.6,0.001]
[1762749169101,2.76877924,3611.7,3611.6,0.001]
[1762749169297,3.72247924,3611.7,3611.6,0.59745984]
[1762749170382,3.24067924,3611.7,3611.6,0.59745984]
[1762749170701,0.4719,3611.7,3611.6,0.59745984]
[1762749170854,3.24067924,3611.7,3611.6,0.59745984]
[1762749171226,3.72247924,3611.7,3611.6,0.59745984]
[1762749178746,3.72247924,3611.7,3611.6,0.001]
[1762749178747,5.65019124,3611.7,3611.6,0.001]
[1762749180428,2.76908592,3611.3,3611.2,0.001]
[1762749180738,4.02902797,3611.0,3610.9,0.001]
[1762749180898,4.02933477,3610.6,3610.5,0.001]
[1762749181098,5.16383477,3610.6,3610.5,0.001]
[1762749181334,5.65573477,3610.6,3610.5,0.001]
[1762749181724,0.4533,3610.2,3610.1,1e-08]
[1762749182040,2.7700831,3610.0,3609.9,0.001]
[1762749182222,2.7700831,3610.0,3609.5,0.001]
[1762749182223,2.77039007,3609.6,3609.5,0.001]
[1762749182475,9.57493987,3609.6,3609.5,0.001]
[1762749182744,5.64350207,3609.6,3609.5,0.001]
[1762749187932,4.97550207,3609.6,3609.5,0.001]
[1762749188133,5.64350207,3609.6,3609.5,0.001]
[1762749188952,0.1809,3610.1,3609.5,0.3991]
[1762749189161,2.77036457,3609.7,3609.5,0.001]
[1762749189351,3.25809007,3609.6,3609.5,0.001]
[1762749189889,3.74999007,3609.6,3609.5,0.001]
[1762749190223,0.4877,3609.6,3609.5,0.001]
[1762749190562,2.77032668,3609.7,3609.5,0.3991]
[1762749190563,0.1384,3609.7,3609.5,0.3991]
[1762749190768,0.1809,3610.4,3609.6,0.99893658]
[1762749191062,0.1809,3610.4,3610.0,5.60926579]
[1762749191063,0.1384,3610.4,3610.0,5.60926579]
[1762749191729,0.1384,3610.4,3610.3,0.3981]
[1762749192435,2.76955452,3610.7,3610.3,1.44624658]
[1762749192436,0.1384,3610.7,3610.3,1.44624658]
[1762749192766,0.1384,3611.1,3610.6,3.16771278]
[1762749192968,0.1384,3611.1,3611.0,0.3981]
[1762749193464,2.76890844,3611.6,3611.0,0.3981]
[1762749193760,0.1384,3611.3,3611.0,0.3981]
[1762749194469,0.1384,3611.3,3611.2,0.3981]
[1762749195151,0.1384,3611.6,3611.2,0.3981]
[1762749195663,2.90726572,3611.6,3611.2,0.3981]
[1762749195833,0.1384,3611.6,3611.2,0.3981]
[1762749196030,0.1384,3611.6,3611.5,0.3981]
[1762749196362,2.9072559,3611.6,3611.5,0.3981]
[1762749196543,2.9072559,3611.6,3611.1,0.1516]
[1762749197172,0.1384,3611.6,3611.1,0.1516]
[1762749197333,2.90725945,3611.6,3611.1,0.5497]
[1762749198367,0.1384,3611.6,3611.1,0.5497]
[1762749198574,2.9072616,3611.6,3611.1,0.5497]
[1762749198861,0.1384,3611.6,3611.0,0.1384]
[1762749199042,2.76896432,3611.5,3611.0,0.1384]
[1762749199240,3.40117823,3611.6,3611.0,0.1384]
[1762749199573,2.90927823,3611.6,3611.1,0.1516]
[1762749200061,0.1404,3611.6,3611.1,0.1516]
[1762749200567,2.76893465,3611.5,3611.1,0.1516]
[1762749200864,2.76902891,3611.4,3611.1,0.1516]
[1762749201164,0.1404,3611.6,3611.1,0.1516]
[1762749201796,0.1404,3611.6,3611.5,0.3981]
[1762749202096,2.9092559,3611.6,3611.5,0.3981]
[1762749202300,0.1404,3611.6,3611.5,0.3981]
[1762749202517,2.9092559,3611.6,3611.5,0.3981]
[1762749202701,2.9092559,3611.6,3611.1,0.1516]
[1762749203602,0.1404,3611.6,3611.1,0.5497]
[1762749203805,2.90927649,3611.6,3611.1,0.5497]
[1762749204410,0.002,3611.6,3611.5,0.3981]
[1762749204767,2.7708559,3611.6,3611.4,0.1384]
[1762749204996,0.002,3611.6,3611.4,0.1384]
[1762749205168,3.23523257,3611.5,3611.4,0.1384]
[1762749206120,3.23523257,3611.5,3610.3,5.60926579]
[1762749206121,0.9458,3611.5,3610.3,5.60926579]
[1762749206325,2.76900924,3611.4,3611.0,0.1384]
[1762749206621,2.76916658,3611.2,3611.0,0.1384]
[1762749206917,2.76911661,3611.3,3611.0,0.1384]
[1762749207103,0.4795,3611.5,3611.0,0.1384]
[1762749207271,2.76922866,3611.2,3611.0,0.1384]
[1762749207475,2.76923928,3611.1,3611.0,0.1384]
[1762749207676,2.76893626,3611.5,3611.0,0.1384]
[1762749207905,2.76913504,3611.3,3611.0,0.1384]
[1762749208420,2.76901089,3611.4,3611.0,0.1384]
[1762749208782,2.76908669,3611.3,3611.0,0.1384]
[1762749210287,2.76920663,3611.2,3611.0,0.1384]
[1762749211092,2.76920663,3611.2,3611.1,3.85]
[1762749211723,3.71500663,3611.2,3611.1,3.85]
[1762749212231,0.9458,3611.2,3609.7,0.83149019]
[1762749212447,0.668,3611.4,3609.8,0.20882401]
[1762749212448,2.76984547,3610.4,3609.8,0.20882401]
[1762749212731,2.76972005,3610.5,3609.8,2.77021458]
[1762749213089,2.9612456,3610.6,3609.7,0.3981]
[1762749213296,0.4795,3610.8,3610.0,2.77001399]
[1762749213596,2.7696398,3610.6,3610.0,2.79771482]
[1762749213798,2.7696398,3610.6,3610.0,3.95524567]
[1762749213998,2.76964569,3610.6,3610.0,1.18523168]
[1762749214428,0.4795,3611.4,3610.5,0.3981]
[1762749214633,2.76953951,3610.8,3610.3,5.60926579]
[1762749214835,2.76933907,3611.0,3610.3,5.60926579]
[1762749215019,2.76953261,3610.8,3610.3,5.60926579]
[1762749215419,2.76943823,3610.9,3610.3,5.60926579]
[1762749215621,2.76940652,3610.9,3610.3,8.37910778]
[1762749215819,2.76940652,3610.9,3610.3,9.54332781]
[1762749216023,2.76940652,3610.9,3610.3,6.77348582]
[1762749217139,2.76948018,3610.8,3610.3,6.77348582]
[1762749217344,2.76948018,3610.8,3610.3,10.62348582]
[1762749217839,2.76956632,3610.7,3610.3,10.62348582]
[1762749218044,2.76956632,3610.7,3610.3,9.45926579]
[1762749218941,2.76956632,3610.7,3610.6,4.42025507]
[1762749219328,2.7694944,3610.8,3610.6,4.42025507]
[1762749219532,2.76947732,3610.8,3610.6,4.42025507]
[1762749219729,2.76954607,3610.7,3610.6,4.42025507]
[1762749220107,3.23584607,3610.7,3610.6,4.42025507]
[1762749220846,2.76969948,3610.5,3610.4,4.42025507]
[1762749221033,0.4663,3610.7,3610.4,4.42025507]
[1762749221357,2.76954607,3610.7,3610.6,4.42025507]
[1762749221919,3.23584607,3610.7,3610.6,4.42025507]
[1762749222464,0.1384,3610.9,3610.6,4.81835507]
[1762749222658,2.90779267,3610.9,3610.8,4.42025507]
[1762749223025,2.76953454,3610.8,3610.4,0.7442312]
[1762749223222,2.76954607,3610.7,3610.5,4.42025507]
[1762749223859,2.76962277,3610.6,3610.5,4.42025507]
[1762749225134,2.76969948,3610.5,3610.3,0.8826312]
[1762749225465,0.46,3610.4,3610.3,0.8826312]
[1762749225764,3.2297762,3610.4,3610.3,0.8826312]
[1762749225977,0.46,3610.4,3610.3,4.7326312]
[1762749226134,0.1384,3610.9,3610.3,6.14511178]
[1762749226330,0.1384,3610.9,3610.6,4.42025507]
[1762749226662,2.76956377,3610.7,3610.6,4.42025507]
[1762749227644,3.23586377,3610.7,3610.6,4.42025507]
[1762749231481,0.4663,3610.7,3610.6,4.42025507]
[1762749231647,2.76954607,3610.7,3610.6,4.81835507]
[1762749232378,2.76954607,3610.7,3610.6,4.42025507]
[1762749232583,2.76949755,3610.8,3610.6,4.81835507]
[1762749232885,2.76946936,3610.8,3610.6,4.81835507]
[1762749233485,2.76946936,3610.8,3610.6,4.42025507]
[1762749235397,0.002,3610.7,3610.6,4.42025507]
[1762749235762,0.002,3610.7,3610.6,4.95675507]
[1762749236379,0.002,3610.7,3610.6,5.33793043]
[1762749236776,0.002,3610.7,3610.6,4.95675507]
[1762749236984,0.002,3610.7,3610.6,4.68003751]
[1762749237901,0.002,3610.7,3610.6,5.42426871]
[1762749238260,0.002,3610.7,3610.6,4.68003751]
[1762749238461,0.002,3610.7,3610.6,5.42426871]
[1762749240524,0.002,3610.7,3610.6,4.68003751]
[1762749240692,0.002,3610.7,3610.6,5.42748228]
[1762749241189,0.002,3610.7,3610.6,4.68003751]
[1762749241521,0.002,3611.1,3611.0,3.17481997]
[1762749241665,0.002,3611.6,3611.4,3.17451324]
[1762749241981,0.002,3612.4,3611.9,2.76862593]
[1762749242186,0.002,3612.4,3612.3,3.17382335]
[1762749242385,0.002,3612.4,3612.3,9.10735007]
[1762749242584,0.012,3612.9,3612.3,9.10735007]
[1762749242585,0.012,3612.9,3612.7,3.17351684]
[1762749242786,0.012,3612.9,3612.8,2.76793622]
[1762749242995,0.012,3612.9,3612.8,4.40866161]
[1762749243199,0.002,3613.2,3613.1,4.4329224]
[1762749243504,0.002,3613.3,3613.2,7.31667131]
[1762749243705,0.002,3613.3,3613.2,8.52421334]
[1762749245006,0.002,3613.3,3613.2,9.68388438]
[1762749245222,0.002,3613.3,3613.2,11.14872626]
[1762749248022,0.002,3613.3,3613.2,12.40843826]
[1762749248412,0.002,3613.3,3613.2,12.38091859]
[1762749248612,0.002,3613.3,3613.2,11.99709623]
[1762749249024,0.002,3613.3,3613.2,12.77120141]
[1762749249257,0.002,3613.3,3613.2,12.38091859]
[1762749251459,0.002,3613.3,3613.2,12.51851859]
[1762749252140,0.002,3613.3,3613.2,12.62927297]
[1762749253081,0.002,3613.3,3613.2,16.86955579]
[1762749253673,0.002,3613.3,3613.2,17.20576516]
[1762749258512,0.002,3613.3,3613.2,16.81548234]
[1762749259098,0.002,3613.3,3613.2,10.77796442]
[1762749259465,0.002,3613.3,3613.2,11.17606442]
[1762749259665,0.002,3613.3,3613.2,16.47927297]
[1762749262075,0.002,3613.3,3613.2,16.08117297]
[1762749262596,0.002,3613.3,3613.2,16.47927297]
[1762749263874,0.002,3613.6,3613.5,2.76740002]
[1762749264095,0.002,3613.6,3613.5,3.16550002]
[1762749264282,0.002,3613.6,3613.5,3.28882238]
[1762749264484,0.002,3613.6,3613.5,3.39957247]
[1762749265001,0.002,3613.6,3613.5,7.93414369]
[1762749265210,0.002,3613.6,3613.5,10.61522911]
[1762749267219,0.9482,3613.6,3613.5,11.29772909]
[1762749267422,0.9482,3613.6,3613.5,0.1376]
[1762749267591,0.9482,3613.6,3613.3,0.1376]
[1762749267788,3.22698912,3613.4,3613.3,0.1376]
[1762749268240,3.67998912,3613.4,3613.3,0.1376]
[1762749268440,2.76757037,3613.3,3613.1,0.001]
[1762749268589,0.4929,3613.2,3613.1,0.001]
[1762749268949,0.9459,3613.2,3613.1,0.001]
[1762749270120,3.7135298,3613.2,3613.1,0.001]
[1762749271016,0.9459,3613.2,3613.1,0.001]
[1762749271419,3.7135298,3613.2,3613.1,0.001]
[1762749298092,5.6382418,3613.2,3613.1,0.001]
[1762749298806,4.02757161,3612.9,3612.8,0.001]
[1762749298991,9.7571105,3612.9,3612.8,0.001]
[1762749299172,10.2222105,3612.9,3612.8,0.001]
[1762749299808,2.76816608,3612.5,3612.4,0.001]
[1762749300010,9.57151697,3612.5,3612.4,0.001]
[1762749300299,10.03661697,3612.5,3612.4,0.001]
[1762749300669,2.76831935,3612.3,3611.1,0.01]
[1762749300868,3.4154626,3611.2,3611.1,0.01]
[1762749301066,3.8805626,3611.2,3611.1,0.01]
[1762749301571,4.5455626,3611.2,3611.1,0.01]
[1762749301966,5.8052746,3611.2,3611.1,0.01]
[1762749304480,10.62931749,3611.2,3611.1,1e-08]
[1762749304906,6.2107786,3611.2,3611.1,1e-08]
[1762749305787,5.8052746,3611.2,3611.1,1e-08]
[1762749309622,4.6751746,3611.2,3611.1,1e-08]
[1762749309806,5.1540746,3611.2,3611.1,1e-08]
[1762749309991,5.6191746,3611.2,3611.1,1e-08]
[1762749311623,4.0288746,3611.2,3611.1,1e-08]
[1762749311796,4.0288746,3611.2,3611.1,0.39810001]
[1762749312197,2.7691626,3611.2,3611.1,0.39810001]
[1762749312437,0.1861,3612.4,3611.1,0.54970001]
[1762749312606,2.76847263,3612.1,3611.1,4.9682389]
[1762749312932,4.41853889,3612.2,3611.1,0.54970001]
[1762749313232,2.76902182,3611.4,3611.1,4.9682389]
[1762749313697,2.7689611,3611.5,3611.3,0.3981]
[1762749314239,2.7689611,3611.5,3611.4,0.3981]
[1762749315552,2.76913544,3611.3,3611.1,1e-08]
[1762749315904,2.76903772,3611.4,3611.2,0.3981]
[1762749316333,2.76896249,3611.5,3611.3,0.3981]
[1762749316538,2.76900924,3611.4,3611.3,0.3981]
[1762749316735,0.665,3611.9,3611.6,0.3981]
[1762749317036,0.665,3612.1,3611.4,4.41853889]
[1762749317342,2.7686122,3612.0,3611.6,4.41853889]
[1762749317655,2.76849515,3612.1,3611.6,4.41853889]
[1762749317938,2.76854928,3612.0,3611.9,0.3981]
[1762749318243,0.667,3611.7,3611.2,3.848]
[1762749318544,2.76908592,3611.3,3611.2,3.848]
[1762749319148,2.76911308,3611.3,3611.1,1e-08]
[1762749319550,0.4651,3611.6,3611.2,0.3981]
[1762749319705,2.76893731,3611.5,3611.4,0.3981]
[1762749319906,2.76872429,3611.8,3611.4,4.81663889]
[1762749320219,2.76872429,3611.8,3611.7,0.3981]
[1762749320597,2.76865679,3611.9,3611.7,0.3981]
[1762749320803,2.76870258,3611.8,3611.7,0.3981]
[1762749321030,0.002,3612.0,3611.4,4.81663889]
[1762749321238,0.002,3612.0,3611.9,0.3981]
[1762749321759,0.002,3612.0,3611.9,12.42958996]
[1762749322057,0.002,3612.0,3611.9,12.40190371]
[1762749322567,0.002,3612.0,3611.9,12.54030371]
[1762749322857,0.002,3612.0,3611.9,8.12176482]
[1762749323056,0.002,3612.0,3611.9,13.66773414]
[1762749323258,0.002,3612.0,3611.9,14.07323814]
[1762749323461,0.002,3612.0,3611.9,5.22188272]
[1762749323626,0.002,3612.0,3611.9,9.65469925]
[1762749324321,0.002,3612.0,3611.9,6.48056932]
[1762749324661,0.002,3612.0,3611.9,0.5365]
[1762749324958,0.002,3612.0,3611.9,4.95503889]
[1762749325524,0.002,3612.0,3611.9,5.35313889]
[1762749325721,0.002,3612.0,3611.9,4.95503889]
[1762749327764,0.002,3612.0,3611.9,5.35313889]
[1762749328328,0.002,3612.0,3611.9,4.95503889]
[1762749329458,0.002,3612.0,3611.9,14.6024336]
[1762749329771,0.002,3612.0,3611.9,2.99672989]
[1762749330066,0.002,3612.0,3611.9,4.81663889]
[1762749330269,0.002,3612.0,3611.9,0.3981]
[1762749330667,0.002,3612.0,3611.9,4.81663889]
[1762749330869,0.002,3612.0,3611.9,7.58526482]
[1762749331060,0.002,3612.0,3611.9,5.21473889]
[1762749331749,0.002,3612.0,3611.9,4.81663889]
[1762749333074,0.002,3612.0,3611.9,7.58526482]
[1762749333476,0.002,3612.0,3611.9,4.81663889]
[1762749334343,0.002,3612.0,3611.9,8.66463889]
[1762749336351,0.4572,3612.0,3611.9,3.848]
[1762749336688,0.4572,3612.0,3611.5,4.41853889]
[1762749337054,0.4572,3612.0,3611.7,4.41853889]
[1762749338596,3.22575753,3612.0,3611.7,4.41853889]
[1762749338782,0.4552,3611.8,3611.7,4.41853889]
[1762749338981,3.25235753,3612.0,3611.7,4.41853889]
[1762749339182,2.77055753,3612.0,3611.7,4.41853889]
[1762749339888,2.77055753,3612.0,3611.6,4.41853889]
[1762749340790,0.002,3612.0,3611.6,4.41853889]
[1762749341577,2.77055817,3612.0,3611.6,4.41853889]
[1762749341784,0.002,3612.0,3611.6,4.41853889]
[1762749342169,2.77058248,3612.0,3611.6,4.41853889]
[1762749342476,2.76863342,3611.9,3611.6,4.41853889]
[1762749343891,3.2523789,3612.0,3611.6,4.41853889]
[1762749344191,0.4552,3611.7,3611.3,0.74257841]
[1762749344393,0.4552,3611.7,3611.1,0.99225056]
[1762749344394,0.937,3611.6,3611.2,0.88097841]
[1762749344595,0.937,3611.6,3611.2,0.1384]
[1762749344799,3.70587905,3611.6,3611.2,0.1384]
[1762749345195,0.937,3611.6,3611.2,0.1384]
[1762749345381,3.2240882,3611.6,3611.2,0.1384]
[1762749345582,0.4552,3611.6,3611.2,0.1384]
[1762749346107,3.22412247,3611.6,3611.2,0.1384]
[1762749346607,0.4552,3611.6,3611.2,0.1384]
[1762749346817,2.76880134,3611.7,3611.3,4.41853889]
[1762749347115,2.90711498,3611.8,3611.3,4.41853889]
[1762749347413,0.1384,3611.8,3611.3,7.18757042]
[1762749347572,0.1384,3611.8,3611.3,4.41853889]
[1762749347769,0.1384,3611.8,3611.7,4.81663889]
[1762749349901,0.002,3612.0,3611.7,4.81663889]
[1762749350209,0.002,3612.0,3611.9,0.3981]
[1762749351112,0.002,3612.0,3611.9,4.81663889]
[1762749352833,0.002,3612.0,3611.9,5.20046125]
[1762749353000,0.002,3612.0,3611.9,0.3981]
[1762749353200,0.002,3612.0,3611.8,0.74257841]
[1762749353413,2.77055631,3612.0,3611.7,0.74257841]
[1762749354130,0.002,3612.0,3611.7,0.74257841]
[1762749355041,0.002,3612.0,3611.8,3.85]
[1762749355640,0.002,3612.0,3611.9,0.3981]
[1762749356444,0.002,3612.0,3611.9,4.81663889]
[1762749356746,0.002,3612.0,3611.9,5.21473889]
[1762749357037,0.002,3612.0,3611.9,5.59856125]
[1762749358530,0.002,3612.0,3611.8,9.0111173]
[1762749358931,0.002,3612.0,3611.8,4.59257841]
[1762749360531,0.002,3612.0,3611.9,0.3981]
[1762749360702,0.002,3612.0,3611.9,4.2481]
[1762749360899,0.002,3612.0,3611.9,8.41717332]
[1762749361103,0.002,3612.0,3611.9,13.36754164]
[1762749361430,0.002,3612.0,3611.9,13.50594164]
[1762749361934,0.002,3612.0,3611.9,13.91144564]
[1762749362097,0.002,3612.0,3611.9,13.16886723]
[1762749363140,0.002,3612.0,3611.9,14.16404602]
[1762749364236,0.002,3612.0,3611.9,13.16886723]
[1762749365241,0.002,3612.0,3611.9,14.16378189]
[1762749368781,0.002,3612.4,3611.9,15.78086304]
[1762749368944,0.002,3612.4,3612.3,9.12462242]
[1762749369140,0.002,3612.4,3612.3,9.50844478]
[1762749369475,0.002,3612.4,3612.3,9.90654478]
[1762749369638,0.002,3612.8,3612.7,4.43322884]
[1762749369847,0.002,3612.8,3612.7,10.84675273]
[1762749370033,0.002,3612.8,3612.7,9.75463827]
[1762749370235,0.002,3612.8,3612.7,5.937867]
[1762749370491,0.002,3612.8,3612.7,0.405504]
[1762749370772,0.002,3612.8,3612.7,5.06006051]
[1762749370926,0.002,3612.8,3612.7,5.45816051]
[1762749371263,0.002,3612.8,3612.7,5.84198287]
[1762749373175,0.002,3612.8,3612.7,5.86966299]
[1762749373973,0.002,3612.8,3612.7,8.0945708]
[1762749374145,0.002,3612.8,3612.7,7.10169487]
[1762749375256,0.002,3612.8,3612.7,8.09281693]
[1762749375780,0.002,3612.8,3612.7,6.73334487]
[1762749376185,0.002,3612.8,3612.7,3.55175967]
[1762749376351,0.002,3612.8,3612.7,6.31977251]
[1762749377151,0.002,3612.8,3612.7,3.96533203]
[1762749377381,0.4824,3612.8,3612.7,3.15365967]
[1762749377680,0.002,3612.8,3612.7,7.07861837]
[1762749378018,0.002,3612.8,3612.7,7.13144487]
[1762749378685,0.002,3612.8,3612.7,7.26904487]
[1762749379045,0.002,3612.8,3612.7,6.87094487]
[1762749379250,0.002,3612.8,3612.7,10.87473194]
[1762749380684,0.002,3612.8,3612.7,11.27283194]
[1762749382621,0.002,3612.8,3612.7,12.60075012]
[1762749382774,0.002,3612.8,3612.7,11.60962806]
[1762749384197,0.002,3613.2,3613.1,3.1732104]
[1762749384525,0.002,3613.2,3613.1,13.23398183]
[1762749384668,0.002,3613.2,3613.1,14.62320886]
[1762749385073,0.002,3613.2,3613.1,13.96887795]
[1762749385314,0.002,3613.3,3613.2,4.4328458]
[1762749385611,0.002,3613.3,3613.2,8.38945586]
[1762749387005,0.002,3613.3,3613.2,8.77973868]
[1762749387914,0.002,3613.6,3613.4,4.43269261]
[1762749388081,0.002,3613.6,3613.5,14.22235583]
[1762749388408,0.002,3613.6,3613.5,13.62960879]
[1762749388588,0.002,3613.6,3613.5,17.47796877]
[1762749388785,0.002,3613.6,3613.5,16.37644649]
[1762749389179,0.002,3613.6,3613.5,16.51404649]
[1762749390708,0.002,3613.6,3613.5,17.50483431]
[1762749392307,0.002,3613.6,3613.5,16.51404649]
[1762749393209,0.012,3613.9,3613.8,2.76717029]
[1762749393413,0.012,3613.9,3613.8,10.40278333]
[1762749393710,0.012,3613.9,3613.8,10.93848333]
[1762749394599,0.012,3613.9,3613.8,10.54038333]
[1762749397199,0.012,3613.9,3613.8,11.53155849]
[1762749397727,0.012,3613.9,3613.8,11.13345849]
[1762749398235,1.1543,3613.9,3613.8,8.42582448]
[1762749398932,1.1543,3613.9,3613.8,12.26782448]
[1762749399540,1.1543,3613.9,3613.8,3.9796]
[1762749400350,1.1543,3613.9,3613.8,4.385104]
[1762749400636,1.1543,3613.9,3613.8,5.1297748]
[1762749403526,0.4729,3613.9,3613.8,7.89694509]
[1762749403840,1.1543,3613.9,3613.8,5.1297748]
[1762749404240,1.1543,3613.9,3613.8,4.385104]
[1762749405047,1.1543,3613.9,3613.8,7.15227429]
[1762749405360,0.012,3613.9,3613.8,11.29366136]
[1762749405524,0.012,3613.9,3613.8,13.58405001]
[1762749405855,0.657,3613.9,3613.8,4.77201211]
[1762749406010,0.657,3613.9,3613.8,4.385104]
[1762749406011,1.1543,3613.9,3613.8,4.385104]
[1762749406723,1.1543,3613.9,3613.8,7.15227429]
[1762749406943,0.4729,3613.9,3613.8,7.15227429]
[1762749407150,0.4729,3613.9,3613.8,7.56387406]
[1762749408742,0.012,3613.9,3613.8,9.65762922]
[1762749409040,0.012,3613.9,3613.8,10.65038823]
[1762749410213,0.012,3613.9,3613.8,10.07824537]
[1762749410428,0.481,3613.9,3613.8,6.91297508]
[1762749410629,1.1276,3613.9,3613.8,8.14666206]
[1762749411023,1.1276,3613.9,3613.8,7.15227429]
[1762749413459,1.1276,3613.9,3613.8,7.56387406]
[1762749416763,1.1276,3613.9,3613.8,9.05408852]
[1762749417659,0.481,3613.9,3613.8,9.05408852]
[1762749417846,0.012,3613.9,3613.8,9.05408852]
[1762749418868,0.012,3613.9,3613.8,13.46598411]
[1762749420462,1.1249,3613.9,3613.8,15.53060425]
[1762749420650,0.012,3613.9,3613.8,15.53060425]
[1762749421032,0.9357,3613.9,3613.8,8.35153837]
[1762749421230,0.9357,3613.9,3613.8,3.9796]
[1762749421455,0.9357,3613.9,3613.8,4.97536645]
[1762749422639,0.4745,3613.9,3613.8,4.97536645]
[1762749422862,0.9357,3613.9,3613.8,4.97536645]
[1762749423082,0.9357,3613.9,3613.8,7.74253674]
[1762749423439,0.9357,3613.9,3613.8,4.97536645]
[1762749426858,0.9357,3613.9,3613.8,3.9796]
[1762749427062,0.9357,3613.9,3613.8,4.97536645]
[1762749429294,0.9357,3613.9,3613.8,8.13881984]
[1762749429295,0.4745,3613.9,3613.8,8.13881984]
[1762749429762,0.9357,3613.9,3613.8,8.13881984]
[1762749430998,0.4745,3613.9,3613.8,7.14305339]
[1762749431371,0.012,3613.9,3613.8,8.13892861]
[1762749431561,0.012,3613.9,3613.8,4.6437871]
[1762749431562,0.4745,3613.9,3613.8,4.6437871]
[1762749431768,0.9357,3613.9,3613.8,5.24338844]
[1762749432872,0.9357,3613.9,3613.8,1.40138844]
[1762749433274,0.9357,3613.9,3613.8,0.99588444]
[1762749434194,0.4745,3613.9,3613.8,9.27035377]
[1762749434385,0.012,3613.9,3613.8,9.37483742]
[1762749434761,0.012,3613.9,3613.8,10.26726744]
[1762749434967,0.012,3613.9,3613.8,10.68788359]
[1762749435197,0.012,3613.9,3613.8,10.28978359]
[1762749435401,0.012,3613.9,3613.8,12.05570318]
[1762749435978,0.012,3613.9,3613.8,12.45380318]
[1762749437583,0.012,3613.9,3613.8,10.96358872]
[1762749441387,0.012,3613.9,3613.8,10.56548872]
[1762749441572,0.012,3613.9,3613.8,10.70308872]
[1762749441770,0.002,3614.3,3614.2,3.17236803]
[1762749441992,0.002,3614.3,3614.2,8.40714672]
[1762749442440,0.002,3614.3,3614.2,8.51787014]
[1762749442637,0.9257,3614.3,3614.2,5.81228913]
[1762749443521,0.9257,3614.3,3614.2,8.57915316]
[1762749443699,0.9257,3614.3,3614.2,10.57725796]
[1762749444099,0.4645,3614.3,3614.2,10.57725796]
[1762749446426,0.9564,3614.3,3614.2,7.81039393]
[1762749446820,0.9564,3614.3,3614.2,10.57725796]
[1762749447329,0.9564,3614.3,3614.2,9.58236842]
[1762749447522,0.4645,3614.3,3614.2,9.58236842]
[1762749448441,0.002,3614.3,3614.2,9.58236842]
[1762749448601,0.002,3614.3,3614.2,10.97535796]
[1762749448807,0.002,3614.3,3614.2,7.81039393]
[1762749449006,0.002,3614.3,3614.2,10.57725796]
[1762749449207,0.4771,3614.3,3614.2,10.57725796]
[1762749451711,0.4771,3614.3,3614.2,10.71485796]
[1762749451911,0.4771,3614.3,3614.2,7.94799393]
[1762749452105,0.969,3614.3,3614.2,10.71485796]
[1762749457435,0.969,3614.3,3614.2,14.55685796]
[1762749458358,0.969,3614.3,3614.2,9.38638513]
[1762749458563,0.969,3614.3,3614.1,0.001]
[1762749458564,2.76686403,3614.2,3614.1,0.001]
[1762749458895,2.76724686,3613.7,3613.6,0.001]
[1762749459038,2.767783,3613.0,3612.9,0.74715379]
[1762749459390,3.734783,3613.0,3612.9,0.001]
[1762749459740,0.1936,3613.8,3612.9,4.81499559]
[1762749459936,0.1936,3613.8,3613.6,5.1573105]
[1762749460150,0.1936,3613.8,3613.7,0.47511644]
[1762749460352,0.4751,3613.7,3613.6,5.1573105]
[1762749460778,0.967,3613.7,3613.6,5.1573105]
[1762749461382,0.967,3613.7,3613.6,4.41189559]
[1762749461711,2.76747661,3613.4,3613.3,0.74541491]
[1762749461907,2.767783,3613.0,3612.9,0.001]
[1762749462206,3.242883,3613.0,3612.9,0.001]
[1762749462403,0.967,3613.0,3612.9,0.001]
[1762749462769,0.967,3613.0,3612.9,0.47611644]
[1762749463903,0.1936,3613.8,3613.2,2.76762271]
[1762749464108,0.1936,3613.8,3613.2,0.74441195]
[1762749464109,0.4919,3613.7,3613.2,0.74441195]
[1762749464269,2.76732344,3613.6,3613.1,4.41189559]
[1762749464672,0.4751,3613.2,3613.1,4.41189559]
[1762749465005,0.4751,3613.2,3613.0,4.41189559]
[1762749465307,0.9182,3613.1,3613.0,4.41189559]
[1762749465506,0.0060169,3613.1,3613.0,7.58518259]
[1762749465711,0.5521,3613.1,3612.9,0.001]
[1762749465907,0.0049,3613.0,3612.9,0.001]
[1762749466400,0.4968,3613.0,3612.9,4.41289559]
[1762749469691,0.4968,3613.0,3612.9,0.001]
[1762749470489,3.264583,3613.0,3612.9,0.001]
[1762749473201,0.4968,3613.0,3612.9,0.001]
[1762749474729,0.49569287,3613.0,3612.9,0.001]
[1762749477346,3.51901206,3613.0,3612.9,0.001]
[1762749480865,0.0596,3612.9,3612.1,0.00465]
[1762749481011,0.1826,3612.2,3611.6,6.91033813]
[1762749481215,0.476,3612.6,3611.9,4.14149196]
[1762749481411,2.76818666,3612.5,3612.1,0.4553]
[1762749481617,2.76818666,3612.5,3611.9,4.14149196]
[1762749481812,3.24424673,3612.4,3611.9,4.14149196]
[1762749482064,0.1853,3612.0,3611.4,4.88590391]
[1762749482220,0.0019,3611.7,3611.4,7.98349196]
[1762749482409,0.1834,3611.5,3611.2,4.58641195]
[1762749482609,0.1834,3611.5,3611.1,4.14249197]
[1762749482610,0.1816,3611.3,3611.1,0.00100001]
[1762749482852,2.76878765,3611.7,3611.1,0.00100001]
[1762749482853,0.0054,3611.2,3611.1,0.00100001]
[1762749485484,0.4814,3611.2,3611.1,0.00100001]
[1762749486080,0.0054,3611.2,3611.1,0.00100001]
[1762749487737,0.476,3611.5,3611.1,0.00100001]
[1762749487962,0.1853,3611.2,3611.1,0.00100001]
[1762749489371,0.476,3611.5,3611.1,0.00100001]